fUSD/lending_fUSD_20250208
["ID","MTS","AMOUNT","RATE_DAILY","PERIOD"]
[352316558,1739040635362,-1140.02,0.00010135,2]
[352316559,1739040635371,-500.0,0.00010135,2]
[352316560,1739040635381,-1348.87,0.00010135,2]
[352316561,1739040635390,-500.0,0.00010135,2]
[352316562,1739040635403,-500.0,0.00010135,2]
[352316563,1739040635412,-500.0,0.00010135,2]
[352316564,1739040635422,-500.0,0.00010135,2]
[352316565,1739040635431,-793.09,0.00010135,2]
[352316566,1739040635441,-500.0,0.00010135,2]
[352316567,1739040635452,-500.0,0.00010135,2]
[352316568,1739040635461,-500.0,0.00010135,2]
[352316569,1739040635471,-872.27,0.00010135,2]
[352316570,1739040635481,-1066.48,0.00010135,2]
[352316571,1739040635490,-500.0,0.00010135,2]
[352316572,1739040635500,-500.0,0.00010135,2]
[352316573,1739040635510,-890.85,0.00010135,2]
[352316574,1739040635519,-500.0,0.00010135,2]
[352316575,1739040635528,-500.0,0.00010135,2]
[352316576,1739040635538,-500.0,0.00010135,2]
[352316577,1739040635551,-500.0,0.00010135,2]
[352316578,1739040635561,-500.0,0.00010135,2]
[352316579,1739040635570,-500.0,0.00010135,2]
[352316580,1739040635580,-500.0,0.00010135,2]
[352316581,1739040635590,-500.0,0.00010135,2]
[352316582,1739040635600,-714.72,0.00010135,2]
[352316583,1739040635610,-500.0,0.00010135,2]
[352316584,1739040635619,-890.34,0.00010135,2]
[352316585,1739040635631,-500.0,0.00010135,2]
[352316586,1739040635641,-500.0,0.00010135,2]
[352316587,1739040635652,-899.55,0.00010135,2]
[352316588,1739040635662,-500.0,0.00010135,2]
[352316589,1739040635672,-1116.403512,0.00010135,2]
[352316590,1739040635682,-895.34,0.00010135,2]
[352316591,1739040635692,-500.0,0.00010135,2]
[352316592,1739040635701,-500.0,0.00010135,2]
[352316593,1739040635711,-500.98717673,0.00010135,2]
[352316594,1739040635721,-500.0,0.00010135,2]
[352316595,1739040635731,-500.0,0.00010135,2]
[352316596,1739040635740,-500.0,0.00010135,2]
[352316597,1739040635750,-500.0,0.00010135,2]
[352316598,1739040635759,-1028.215139,0.00010135,2]
[352316599,1739040635769,-500.0,0.00010135,2]
[352316600,1739040635779,-500.0,0.00010135,2]
[352316601,1739040635788,-500.0,0.00010135,2]
[352316602,1739040635797,-500.0,0.00010135,2]
[352316603,1739040635807,-500.0,0.00010135,2]
[352316604,1739040635816,-592.01,0.00010135,2]
[352316605,1739040635826,-500.0,0.00010135,2]
[352316606,1739040635836,-1035.14,0.00010135,2]
[352316607,1739040635846,-876.65,0.00010135,2]
[352316608,1739040635856,-500.0,0.00010135,2]
[352316609,1739040635866,-931.39,0.00010135,2]
[352316610,1739040635876,-500.0,0.00010135,2]
[352316611,1739040635887,-500.0,0.00010135,2]
[352316612,1739040635897,-500.0,0.00010135,2]
[352316613,1739040635906,-875.35,0.00010135,2]
[352316614,1739040635916,-869.1,0.00010135,2]
[352316615,1739040635925,-500.0,0.00010135,2]
[352316616,1739040635935,-500.0,0.00010135,2]
[352316617,1739040635945,-582.1,0.00010135,2]
[352316618,1739040635955,-500.0,0.00010135,2]
[352316619,1739040635964,-793.14,0.00010135,2]
[352316620,1739040635974,-500.0,0.00010135,2]
[352316621,1739040635984,-1074.27,0.00010135,2]
[352316622,1739040635994,-500.0,0.00010135,2]
[352316623,1739040636003,-848.7,0.00010135,2]
[352316624,1739040636013,-500.0,0.00010135,2]
[352316625,1739040636023,-500.0,0.00010135,2]
[352316626,1739040636032,-685.6,0.00010135,2]
[352316627,1739040636042,-500.0,0.00010135,2]
[352316628,1739040636053,-500.0,0.00010135,2]
[352316629,1739040636063,-500.0,0.00010135,2]
[352316630,1739040636073,-500.0,0.00010135,2]
[352316631,1739040636083,-500.0,0.00010135,2]
[352316632,1739040636092,-500.0,0.00010135,2]
[352316633,1739040636102,-500.76067431,0.00010135,2]
[352316634,1739040636111,-500.0,0.00010135,2]
[352316635,1739040636121,-500.0,0.00010135,2]
[352316636,1739040636130,-500.0,0.00010135,2]
[352316637,1739040636140,-500.0,0.00010135,2]
[352316638,1739040636150,-500.0,0.00010135,2]
[352316639,1739040636160,-500.0,0.00010135,2]
[352316640,1739040636169,-500.0,0.00010135,2]
[352316641,1739040636179,-500.0,0.00010135,2]
[352316642,1739040636189,-500.0,0.00010135,2]
[352316643,1739040636199,-500.0,0.00010135,2]
[352316644,1739040636209,-500.0,0.00010135,2]
[352316645,1739040636219,-787.81,0.00010135,2]
[352316646,1739040636228,-682.13,0.00010135,2]
[352316647,1739040636238,-500.0,0.00010135,2]
[352316648,1739040636247,-500.0,0.00010135,2]
[352316649,1739040636257,-500.0,0.00010135,2]
[352316650,1739040636266,-1626.06,0.00010135,2]
[352316651,1739040636275,-1272.7,0.00010135,2]
[352316652,1739040636285,-500.0,0.00010135,2]
[352316653,1739040636294,-500.0,0.00010135,2]
[352316654,1739040636304,-500.0,0.00010135,2]
[352316655,1739040636313,-500.0,0.00010135,2]
[352316656,1739040636323,-578.22,0.00010135,2]
[352316657,1739040636334,-500.0,0.00010135,2]
[352316658,1739040636343,-1035.7,0.00010135,2]
[352316659,1739040636353,-500.0,0.00010135,2]
[352316660,1739040636362,-500.0,0.00010135,2]
[352316661,1739040636372,-500.0,0.00010135,2]
[352316662,1739040636382,-500.0,0.00010135,2]
[352316663,1739040636392,-500.0,0.00010135,2]
[352316664,1739040636403,-1103.82,0.00010135,2]
[352316665,1739040636412,-1509.65,0.00010135,2]
[352316666,1739040636422,-500.0,0.00010135,2]
[352316667,1739040636433,-500.0,0.00010135,2]
[352316668,1739040636442,-500.0,0.00010135,2]
[352316669,1739040636452,-500.0,0.00010135,2]
[352316670,1739040636462,-500.0,0.00010135,2]
[352316671,1739040636471,-500.0,0.00010135,2]
[352316672,1739040636480,-500.0,0.00010135,2]
[352316673,1739040636489,-813.08,0.00010135,2]
[352316674,1739040636499,-500.0,0.00010135,2]
[352316675,1739040636508,-1060.65,0.00010135,2]
[352316676,1739040636518,-500.0,0.00010135,2]
[352316677,1739040636527,-629.65,0.00010135,2]
[352316678,1739040636537,-975.76,0.00010135,2]
[352316679,1739040636549,-500.0,0.00010135,2]
[352316680,1739040636558,-500.0,0.00010135,2]
[352316681,1739040636567,-500.0,0.00010135,2]
[352316682,1739040636577,-2030.46,0.00010135,2]
[352316683,1739040636587,-500.0,0.00010135,2]
[352316684,1739040636597,-500.0,0.00010135,2]
[352316685,1739040636606,-500.0,0.00010135,2]
[352316686,1739040636615,-500.0,0.00010135,2]
[352316687,1739040636627,-1299.78,0.00010135,2]
[352316688,1739040636637,-500.0,0.00010135,2]
[352316689,1739040636646,-500.0,0.00010135,2]
[352316690,1739040636658,-500.0,0.00010135,2]
[352316691,1739040636668,-1121.57,0.00010135,2]
[352316692,1739040636677,-500.0,0.00010135,2]
[352316693,1739040636687,-956.12,0.00010135,2]
[352316694,1739040636696,-1058.02,0.00010135,2]
[352316695,1739040636706,-500.0,0.00010135,2]
[352316696,1739040636716,-522.51,0.00010135,2]
[352316697,1739040636725,-500.0,0.00010135,2]
[352316698,1739040636735,-500.0,0.00010135,2]
[352316699,1739040636745,-500.0,0.00010135,2]
[352316700,1739040636755,-500.0,0.00010135,2]
[352316701,1739040636764,-872.69,0.00010135,2]
[352316702,1739040636774,-500.0,0.00010135,2]
[352316703,1739040636783,-584.06,0.00010135,2]
[352316704,1739040636793,-500.0,0.00010135,2]
[352316705,1739040636803,-1626.96,0.00010135,2]
[352316706,1739040636812,-784.0,0.00010135,2]
[352316707,1739040636823,-2570.48,0.00010135,2]
[352316708,1739040636833,-1224.32,0.00010135,2]
[352316709,1739040636842,-500.0,0.00010135,2]
[352316710,1739040636852,-1394.44,0.00010135,2]
[352316711,1739040636861,-500.0,0.00010135,2]
[352316712,1739040636871,-1320.72,0.00010135,2]
[352316713,1739040636881,-500.0,0.00010135,2]
[352316714,1739040636891,-500.0,0.00010135,2]
[352316715,1739040636905,-500.0,0.00010135,2]
[352316716,1739040636915,-500.0,0.00010135,2]
[352316717,1739040636924,-500.0,0.00010135,2]
[352316718,1739040636935,-1577.09,0.00010135,2]
[352316719,1739040636944,-500.0,0.00010135,2]
[352316720,1739040636955,-950.54,0.00010135,2]
[352316721,1739040637023,-293.61278077,0.00010135,2]
[352316722,1739040637033,-500.0,0.00010135,2]
[352316723,1739040637043,-500.0,0.00010135,2]
[352316724,1739040637053,-4199.11,0.00010135,2]
[352316725,1739040637063,-500.0,0.00010135,2]
[352316726,1739040637072,-855.99,0.00010135,2]
[352316727,1739040637082,-628.12,0.00010135,2]
[352316728,1739040637092,-937.51,0.00010135,2]
[352316729,1739040637101,-905.52,0.00010135,2]
[352316730,1739040637110,-500.0,0.00010135,2]
[352316731,1739040637120,-1507.74,0.00010135,2]
[352316732,1739040637129,-2539.11,0.00010135,2]
[352316733,1739040637138,-889.65,0.00010135,2]
[352316734,1739040637149,-434.85644752,0.00010135,2]
[352316735,1739040637158,-500.0,0.00010135,2]
[352316736,1739040637167,-1440.29,0.00010135,2]
[352316737,1739040637176,-500.0,0.00010135,2]
[352316738,1739040637186,-500.65516432,0.00010135,2]
[352316739,1739040637196,-577.99,0.00010135,2]
[352316740,1739040637206,-500.0,0.00010135,2]
[352316741,1739040637215,-500.0,0.00010135,2]
[352316742,1739040637226,-2091.76,0.00010135,2]
[352316743,1739040637236,-1029.88,0.00010135,2]
[352316744,1739040637247,-1156.42,0.00010135,2]
[352316745,1739040637257,-1705.0,0.00010135,2]
[352316746,1739040637267,-1782.34,0.00010135,2]
[352316747,1739040637276,-500.0,0.00010135,2]
[352316748,1739040637286,-1767.73,0.00010135,2]
[352316749,1739040637296,-500.0,0.00010135,2]
[352316750,1739040637305,-500.0,0.00010135,2]
[352316751,1739040637316,-500.0,0.00010135,2]
[352316752,1739040637325,-500.0,0.00010135,2]
[352316753,1739040637334,-500.0,0.00010135,2]
[352316754,1739040637343,-1128.81,0.00010135,2]
[352316755,1739040637353,-500.0,0.00010135,2]
[352316756,1739040637362,-500.0,0.00010135,2]
[352316757,1739040637371,-990.75,0.00010135,2]
[352316758,1739040637380,-500.0,0.00010135,2]
[352316759,1739040637390,-1250.13,0.00010135,2]
[352316760,1739040637399,-1568.08,0.00010135,2]
[352316761,1739040637408,-500.0,0.00010135,2]
[352316762,1739040637418,-909.38,0.00010135,2]
[352316763,1739040637428,-500.0,0.00010135,2]
[352316764,1739040637438,-631.4,0.00010135,2]
[352316765,1739040637447,-500.0,0.00010135,2]
[352316766,1739040637457,-505.32430455,0.00010135,2]
[352316767,1739040637466,-1218.52,0.00010135,2]
[352316768,1739040637476,-1944.78,0.00010135,2]
[352316769,1739040637485,-500.0,0.00010135,2]
[352316770,1739040637494,-500.0,0.00010135,2]
[352316771,1739040637503,-500.0,0.00010135,2]
[352316772,1739040637513,-500.0,0.00010135,2]
[352316773,1739040637522,-1135.79,0.00010135,2]
[352316774,1739040637531,-1784.48,0.00010135,2]
[352316775,1739040637541,-1201.96,0.00010135,2]
[352316776,1739040637555,-1159.47,0.00010135,2]
[352316777,1739040637564,-500.0,0.00010135,2]
[352316778,1739040637574,-2050.98,0.00010135,2]
[352316779,1739040637584,-225.41957089,0.00010135,2]
[352316780,1739040637594,-500.0,0.00010135,2]
[352316781,1739040637604,-767.37,0.00010135,2]
[352316782,1739040637613,-500.0,0.00010135,2]
[352316783,1739040637623,-1074.59,0.00010135,2]
[352316784,1739040637634,-1957.48,0.00010135,2]
[352316785,1739040637643,-500.0,0.00010135,2]
[352316786,1739040637655,-1546.44,0.00010135,2]
[352316787,1739040637664,-760.52,0.00010135,2]
[352316788,1739040637675,-1057.92,0.00010135,2]
[352316789,1739040637685,-500.0,0.00010135,2]
[352316790,1739040637695,-500.0,0.00010135,2]
[352316792,1739040637705,-1574.93,0.00010135,2]
[352316793,1739040637715,-1020.46,0.00010135,2]
[352316794,1739040637724,-500.0,0.00010135,2]
[352316796,1739040637733,-3009.18,0.00010135,2]
[352316797,1739040637743,-500.0,0.00010135,2]
[352316798,1739040637753,-500.0,0.00010135,2]
[352316800,1739040637763,-500.0,0.00010135,2]
[352316802,1739040637772,-650.92,0.00010135,2]
[352316804,1739040637782,-500.0,0.00010135,2]
[352316805,1739040637792,-500.0,0.00010135,2]
[352316807,1739040637802,-1269.34,0.00010135,2]
[352316808,1739040637812,-1095.06,0.00010135,2]
[352316809,1739040637822,-500.0,0.00010135,2]
[352316810,1739040637831,-500.0,0.00010135,2]
[352316811,1739040637840,-2250.02,0.00010135,2]
[352316812,1739040637850,-500.0,0.00010135,2]
[352316813,1739040637860,-500.0,0.00010135,2]
[352316814,1739040637870,-653.39,0.00010135,2]
[352316815,1739040637879,-1602.28,0.00010135,2]
[352316816,1739040637889,-1053.71,0.00010135,2]
[352316817,1739040637900,-500.0,0.00010135,2]
[352316818,1739040637910,-500.0,0.00010135,2]
[352316819,1739040637920,-3166.67,0.00010135,2]
[352316820,1739040637930,-500.0,0.00010135,2]
[352316821,1739040637939,-500.0,0.00010135,2]
[352316822,1739040637950,-585.49,0.00010135,2]
[352316823,1739040637959,-1679.98,0.00010135,2]
[352316824,1739040637969,-904.18,0.00010135,2]
[352316825,1739040637979,-1568.8,0.00010135,2]
[352316826,1739040637988,-500.0,0.00010135,2]
[352316827,1739040637997,-500.0,0.00010135,2]
[352316828,1739040638007,-500.0,0.00010135,2]
[352316829,1739040638016,-1400.81,0.00010135,2]
[352316830,1739040638025,-500.0,0.00010135,2]
[352316831,1739040638034,-500.0,0.00010135,2]
[352316832,1739040638044,-500.0,0.00010135,2]
[352316833,1739040638054,-511.81,0.00010135,2]
[352316834,1739040638063,-500.0,0.00010135,2]
[352316835,1739040638073,-337.44236435,0.00010135,2]
[352316836,1739040638083,-500.0,0.00010135,2]
[352316837,1739040638092,-500.0,0.00010135,2]
[352316838,1739040638102,-804.57,0.00010135,2]
[352316839,1739040638111,-697.81,0.00010135,2]
[352316841,1739040638120,-500.0,0.00010135,2]
[352316843,1739040638130,-2077.69,0.00010135,2]
[352316845,1739040638140,-1280.25,0.00010135,2]
[352316847,1739040638150,-500.0,0.00010135,2]
[352316849,1739040638159,-500.0,0.00010135,2]
[352316851,1739040638168,-1663.58,0.00010135,2]
[352316853,1739040638178,-500.0,0.00010136,2]
[352316855,1739040638187,-500.0,0.00010136,2]
[352316857,1739040638197,-500.0,0.00010136,2]
[352316859,1739040638206,-500.0,0.00010136,2]
[352316861,1739040638216,-500.0,0.00010136,2]
[352316863,1739040638225,-500.0,0.00010136,2]
[352316865,1739040638235,-500.0,0.00010136,2]
[352316867,1739040638244,-500.0,0.00010136,2]
[352316869,1739040638254,-629.10487755,0.00010136,2]
[352316871,1739040638263,-500.0,0.00010136,2]
[352316873,1739040638272,-500.0,0.00010136,2]
[352316875,1739040638281,-500.0,0.00010136,2]
[352316877,1739040638291,-500.0,0.00010136,2]
[352316879,1739040638301,-500.0,0.00010136,2]
[352316881,1739040638310,-500.0,0.00010136,2]
[352316883,1739040638320,-500.0,0.00010136,2]
[352316885,1739040638329,-500.0,0.00010136,2]
[352316887,1739040638338,-500.0,0.00010136,2]
[352316889,1739040638347,-500.0,0.00010136,2]
[352316891,1739040638357,-500.0,0.00010136,2]
[352316893,1739040638366,-500.0,0.00010136,2]
[352316895,1739040638377,-500.0,0.00010136,2]
[352316897,1739040638387,-500.0,0.00010136,2]
[352316899,1739040638396,-500.0,0.00010136,2]
[352316900,1739040638406,-500.0,0.00010136,2]
[352316902,1739040638416,-500.0,0.00010136,2]
[352316904,1739040638425,-500.0,0.00010136,2]
[352316906,1739040638434,-500.0,0.00010136,2]
[352316908,1739040638444,-500.0,0.00010136,2]
[352316910,1739040638453,-500.0,0.00010136,2]
[352316912,1739040638463,-500.0,0.00010136,2]
[352316914,1739040638472,-500.0,0.00010136,2]
[352316916,1739040638482,-500.0,0.00010136,2]
[352316918,1739040638491,-500.0,0.00010136,2]
[352316920,1739040638500,-500.0,0.00010136,2]
[352316921,1739040638510,-500.0,0.00010136,2]
[352316923,1739040638519,-500.0,0.00010136,2]
[352316925,1739040638528,-500.0,0.00010136,2]
[352316927,1739040638538,-500.0,0.00010136,2]
[352316929,1739040638550,-500.0,0.00010136,2]
[352316931,1739040638559,-511.12985025,0.00010136,2]
[352316933,1739040638569,-500.0,0.00010136,2]
[352316935,1739040638578,-500.0,0.00010136,2]
[352316937,1739040638590,-500.0,0.00010136,2]
[352316940,1739040638601,-500.0,0.00010136,2]
[352316941,1739040638610,-500.0,0.00010136,2]
[352316943,1739040638621,-500.0,0.00010136,2]
[352316945,1739040638630,-500.0,0.00010136,2]
[352316947,1739040638639,-500.0,0.00010136,2]
[352316949,1739040638649,-500.0,0.00010136,2]
[352316952,1739040638659,-500.0,0.00010136,2]
[352316953,1739040638668,-500.0,0.00010136,2]
[352316956,1739040638677,-500.0,0.00010136,2]
[352316958,1739040638688,-500.0,0.00010136,2]
[352316959,1739040638697,-500.0,0.00010136,2]
[352316962,1739040638707,-500.0,0.00010136,2]
[352316964,1739040638717,-465.61407853,0.00010136,2]
[352316966,1739040638727,-500.0,0.00010136,2]
[352316968,1739040638736,-535.16,0.00010136,2]
[352316970,1739040638745,-927.72,0.00010136,2]
[352316972,1739040638754,-500.0,0.00010136,2]
[352316974,1739040638763,-500.0,0.00010136,2]
[352316976,1739040638772,-500.0,0.00010136,2]
[352316978,1739040638782,-500.0,0.00010136,2]
[352316979,1739040638791,-500.0,0.00010136,2]
[352316981,1739040638800,-892.29,0.00010136,2]
[352316983,1739040638809,-500.0,0.00010136,2]
[352316985,1739040638819,-500.0,0.00010136,2]
[352316987,1739040638828,-704.67,0.00010136,2]
[352316989,1739040638838,-224.21493399,0.00010136,2]
[352316992,1739040638847,-500.0,0.00010136,2]
[352316993,1739040638856,-500.0,0.00010136,2]
[352316995,1739040638866,-632.37,0.00010136,2]
[352316997,1739040638875,-500.0,0.00010136,2]
[352316999,1739040638884,-441.11356472,0.00010136,2]
[352317001,1739040638893,-698.41,0.00010136,2]
[352317003,1739040638903,-500.0,0.00010136,2]
[352317005,1739040638913,-500.0,0.00010136,2]
[352317007,1739040638923,-500.0,0.00010136,2]
[352317009,1739040638933,-500.0,0.00010136,2]
[352317011,1739040638942,-500.0,0.00010136,2]
[352317013,1739040638952,-516.51,0.00010136,2]
[352317015,1739040638961,-500.0,0.00010136,2]
[352317017,1739040638971,-500.0,0.00010136,2]
[352317019,1739040638982,-992.45,0.00010136,2]
[352317021,1739040638991,-500.0,0.00010136,2]
[352317023,1739040639000,-500.0,0.00010136,2]
[352317025,1739040639009,-500.0,0.00010136,2]
[352317027,1739040639019,-500.0,0.00010136,2]
[352317029,1739040639028,-500.0,0.00010136,2]
[352317031,1739040639037,-801.97,0.00010136,2]
[352317033,1739040639047,-500.0,0.00010136,2]
[352317035,1739040639056,-541.42,0.00010136,2]
[352317037,1739040639065,-598.71,0.00010136,2]
[352317039,1739040639074,-500.0,0.00010136,2]
[352317041,1739040639083,-500.0,0.00010136,2]
[352317043,1739040639092,-570.8,0.00010136,2]
[352317045,1739040639101,-863.44,0.00010136,2]
[352317047,1739040639111,-500.0,0.00010136,2]
[352317049,1739040639120,-500.0,0.00010136,2]
[352317051,1739040639129,-500.0,0.00010136,2]
[352317053,1739040639138,-500.0,0.00010136,2]
[352317055,1739040639147,-500.0,0.00010136,2]
[352317057,1739040639156,-500.0,0.00010136,2]
[352317059,1739040639165,-500.0,0.00010136,2]
[352317061,1739040639174,-959.22,0.00010136,2]
[352317063,1739040639183,-500.0,0.00010136,2]
[352317065,1739040639192,-500.0,0.00010136,2]
[352317067,1739040639201,-500.0,0.00010136,2]
[352317069,1739040639210,-500.0,0.00010136,2]
[352317071,1739040639220,-509.81,0.00010136,2]
[352317073,1739040639229,-500.0,0.00010136,2]
[352317075,1739040639239,-500.0,0.00010136,2]
[352317077,1739040639247,-500.0,0.00010136,2]
[352317079,1739040639256,-824.88,0.00010136,2]
[352317081,1739040639265,-500.0,0.00010136,2]
[352317083,1739040639274,-500.0,0.00010136,2]
[352317085,1739040639283,-818.12,0.00010136,2]
[352317087,1739040639292,-500.0,0.00010136,2]
[352317089,1739040639302,-500.0,0.00010136,2]
[352317091,1739040639311,-500.0,0.00010136,2]
[352317093,1739040639320,-500.0,0.00010136,2]
[352317095,1739040639329,-533.58,0.00010136,2]
[352317097,1739040639339,-500.0,0.00010136,2]
[352317099,1739040639348,-500.0,0.00010136,2]
[352317101,1739040639358,-500.0,0.00010136,2]
[352317103,1739040639367,-500.0,0.00010136,2]
[352317105,1739040639376,-500.0,0.00010136,2]
[352317107,1739040639385,-500.0,0.00010136,2]
[352317109,1739040639394,-500.0,0.00010136,2]
[352317111,1739040639404,-500.0,0.00010136,2]
[352317113,1739040639414,-500.0,0.00010136,2]
[352317115,1739040639424,-500.0,0.00010136,2]
[352317117,1739040639432,-500.0,0.00010136,2]
[352317119,1739040639441,-514.1,0.00010136,2]
[352317121,1739040639450,-500.0,0.00010136,2]
[352317123,1739040639459,-525.36,0.00010136,2]
[352317125,1739040639468,-500.0,0.00010136,2]
[352317127,1739040639479,-500.0,0.00010136,2]
[352317129,1739040639489,-500.0,0.00010136,2]
[352317131,1739040639498,-500.0,0.00010136,2]
[352317133,1739040639507,-500.0,0.00010136,2]
[352317135,1739040639516,-705.24,0.00010136,2]
[352317137,1739040639526,-500.0,0.00010136,2]
[352317139,1739040639535,-500.0,0.00010136,2]
[352317141,1739040639546,-500.0,0.00010136,2]
[352317143,1739040639557,-500.0,0.00010136,2]
[352317145,1739040639569,-500.0,0.00010136,2]
[352317147,1739040639579,-500.0,0.00010136,2]
[352317149,1739040639589,-500.0,0.00010136,2]
[352317151,1739040639599,-693.46,0.00010136,2]
[352317153,1739040639608,-500.0,0.00010136,2]
[352317155,1739040639617,-1380.81,0.00010136,2]
[352317157,1739040639630,-500.0,0.00010136,2]
[352317159,1739040639639,-664.56,0.00010136,2]
[352317161,1739040639652,-826.86,0.00010136,2]
[352317163,1739040639671,-500.0,0.00010136,2]
[352317165,1739040639680,-1217.96,0.00010136,2]
[352317167,1739040639690,-500.0,0.00010136,2]
[352317169,1739040639699,-950.06,0.00010136,2]
[352317171,1739040639709,-1018.16,0.00010136,2]
[352317174,1739040639720,-500.0,0.00010136,2]
[352317175,1739040639729,-500.0,0.00010136,2]
[352317177,1739040639738,-500.0,0.00010136,2]
[352317179,1739040639747,-4440.08,0.00010136,2]
[352317181,1739040639756,-500.0,0.00010136,2]
[352317183,1739040639765,-500.0,0.00010136,2]
[352317185,1739040639774,-500.0,0.00010136,2]
[352317187,1739040639783,-500.0,0.00010136,2]
[352317189,1739040639792,-907.44,0.00010136,2]
[352317191,1739040639801,-550.5,0.00010136,2]
[352317193,1739040639811,-1206.48,0.00010136,2]
[352317196,1739040639821,-500.0,0.00010136,2]
[352317198,1739040639831,-645.15086186,0.00010136,2]
[352317199,1739040639840,-500.0,0.00010136,2]
[352317201,1739040639849,-500.0,0.00010136,2]
[352317203,1739040639859,-500.0,0.00010136,2]
[352317205,1739040639868,-500.0,0.00010136,2]
[352317207,1739040639877,-500.0,0.00010136,2]
[352317209,1739040639886,-1299.55,0.00010136,2]
[352317211,1739040639895,-509.54,0.00010136,2]
[352317213,1739040639906,-500.0,0.00010136,2]
[352317215,1739040639915,-500.0,0.00010136,2]
[352317217,1739040639924,-1082.73,0.00010136,2]
[352317219,1739040639933,-500.0,0.00010136,2]
[352317221,1739040639942,-1026.14,0.00010136,2]
[352317223,1739040639952,-500.0,0.00010136,2]
[352317225,1739040639961,-500.0,0.00010136,2]
[352317227,1739040639970,-1645.78,0.00010136,2]
[352317229,1739040639979,-500.0,0.00010136,2]
[352317231,1739040639990,-500.0,0.00010136,2]
[352317233,1739040640000,-500.0,0.00010136,2]
[352317235,1739040640009,-1105.4,0.00010136,2]
[352317237,1739040640018,-941.65,0.00010136,2]
[352317239,1739040640028,-1091.51,0.00010136,2]
[352317241,1739040640038,-500.0,0.00010136,2]
[352317244,1739040640051,-1509.86,0.00010136,2]
[352317245,1739040640061,-500.0,0.00010136,2]
[352317247,1739040640072,-500.0,0.00010136,2]
[352317249,1739040640081,-1781.25,0.00010136,2]
[352317250,1739040640090,-500.0,0.00010136,2]
[352317251,1739040640099,-500.0,0.00010136,2]
[352317252,1739040640109,-500.0,0.00010136,2]
[352317253,1739040640118,-1219.25,0.00010136,2]
[352317254,1739040640127,-500.0,0.00010136,2]
[352317255,1739040640137,-1120.47,0.00010136,2]
[352317256,1739040640147,-513.37,0.00010136,2]
[352317257,1739040640157,-500.0,0.00010136,2]
[352317258,1739040640166,-500.0,0.00010136,2]
[352317259,1739040640175,-500.0,0.00010136,2]
[352317260,1739040640185,-1699.35,0.00010136,2]
[352317261,1739040640194,-500.0,0.00010136,2]
[352317262,1739040640203,-1753.37,0.00010136,2]
[352317263,1739040640213,-500.0,0.00010136,2]
[352317264,1739040640222,-500.0,0.00010136,2]
[352317265,1739040640239,-500.0,0.00010136,2]
[352317267,1739040640248,-500.0,0.00010136,2]
[352317269,1739040640258,-500.0,0.00010136,2]